[Event "European Online Club-ch-A 2021"]
[Site "Online"]
[Date "2021.03.27"]
[Round "2.1"]
[White "Horvath, Laszlo"]
[Black "Zavgorodniy, Sergiy"]
[Result "0-1"]
[ECO "C41"]
[WhiteElo "2183"]
[BlackElo "2418"]
[Annotator "NA"]
[PlyCount "134"]
[EventDate "2021.03.27"]
[EventType "team-tourn"]
[EventCountry "NET"]
[SourceTitle "playchess.com"]
[Source "ChessBase"]
[SourceQuality "1"]
[TimeControl "900+5"]

1. e4 {[%emt 0:00:00]} e5 {[%emt 0:00:05]} 2. Nf3 {[%emt 0:00:04]} d6 {[%emt 0:00:02]} 3. d4 {[%emt 0:00:03]} exd4 {[%emt 0:00:01]} 4. Nxd4 {[%emt 0:00:02]} Nf6 {[%emt 0:00:02]} 5. f3 {[%emt 0:00:02]} d5 {[%emt 0:00:16]} 6. exd5 {[%emt 0:00:03]} Qxd5 {[%emt 0:00:46]} 7. Qe2+ {[%emt 0:01:29]} Be7 {[%emt 0:00:13]} 8. Qb5+ {[%emt 0:00:06]} Bd7 {[%emt 0:00:52]} 9. Qxd5 {[%emt 0:00:05]} Nxd5 {[%emt 0:00:03]} 10. Nb3 {[%emt 0:01:06]} Nc6 {[%emt 0:00:39]} 11. Bd2 {[%emt 0:00:15]} Bf5 {[%emt 0:00:20]} 12. c3 {[%emt 0:00:16]} O-O-O {[%emt 0:00:07]} 13. Be2 {[%emt 0:00:50]} Rhe8 {[%emt 0:00:30]} 14. Kf2 {[%emt 0:00:22]} Ne5 {[%emt 0:02:01]} 15. f4 {[%emt 0:02:34]} Nd3+ {[%emt 0:00:39]} 16. Bxd3 {[%emt 0:00:04]} Bxd3 {[%emt 0:00:02]} 17. Re1 {[%emt 0:00:47]} Bd6 {[%emt 0:00:26]} 18. g3 {[%emt 0:01:16]} Rxe1 {[%emt 0:00:16]} 19. Bxe1 {[%emt 0:00:46]} Re8 {[%emt 0:00:09]} 20. N1d2 {[%emt 0:00:50]} Re2+ {[%emt 0:00:13]} 21. Kg1 {[%emt 0:00:06]} c5 {[%emt 0:00:41]} 22. c4 {[%emt 0:00:45]} Ne3 {[%emt 0:00:39]} 23. Bf2 {[%emt 0:00:04]} Ng4 {[%emt 0:01:55]} 24. Rf1 {[%emt 0:00:06]} b6 {[%emt 0:00:34]} 25. h3 {[%emt 0:00:26]} Nf6 {[%emt 0:00:33]} 26. Rd1 {[%emt 0:00:42]} Kc7 {[%emt 0:00:19]} 27. Nc1 {[%emt 0:00:15]} Rxd2 {[%emt 0:00:40]} 28. Rxd2 {[%emt 0:00:03]} Bxc4 {[%emt 0:00:02]} 29. b3 {[%emt 0:00:04]} Be6 {[%emt 0:00:02]} 30. Nd3 {[%emt 0:00:08]} Bxh3 {[%emt 0:00:08]} 31. Ne5 {[%emt 0:00:05]} Bxe5 {[%emt 0:00:35]} 32. fxe5 {[%emt 0:00:03]} Ne4 {[%emt 0:00:03]} 33. Re2 {[%emt 0:00:08]} Nxf2 {[%emt 0:00:03]} 34. Kxf2 {[%emt 0:00:02]} Be6 {[%emt 0:00:03]} 35. Ke3 {[%emt 0:00:05]} h5 {[%emt 0:00:05]} 36. Kf4 {[%emt 0:00:02]} a5 {[%emt 0:00:12]} 37. Kg5 {[%emt 0:00:07]} g6 {[%emt 0:00:14]} 38. Rd2 {[%emt 0:00:15]} b5 {[%emt 0:00:17]} 39. Kf4 {[%emt 0:00:18]} b4 {[%emt 0:00:08]} 40. Ke4 {[%emt 0:00:04]} Kc6 {[%emt 0:00:18]} 41. Rd8 {[%emt 0:00:23]} a4 {[%emt 0:00:07]} 42. bxa4 {[%emt 0:00:03]} Bxa2 {[%emt 0:00:04]} 43. a5 {[%emt 0:00:07]} Be6 {[%emt 0:00:29]} 44. Rd6+ {[%emt 0:00:19]} Kb7 {[%emt 0:00:10]} 45. Rb6+ {[%emt 0:00:02]} Ka7 {[%emt 0:00:18]} 46. Rb5 {[%emt 0:00:05]} b3 {[%emt 0:00:06]} 47. Kd3 {[%emt 0:00:12]} c4+ {[%emt 0:00:22]} 48. Kc3 {[%emt 0:00:02]} g5 {[%emt 0:00:03]} 49. Rb6 {[%emt 0:00:09]} h4 {[%emt 0:00:03]} 50. gxh4 {[%emt 0:00:01]} gxh4 {[%emt 0:00:02]} 51. Rd6 {[%emt 0:00:02]} h3 {[%emt 0:00:05]} 52. Rd2 {[%emt 0:00:02]} Ka6 {[%emt 0:00:48]} 53. Kb4 {[%emt 0:00:03]} c3 {[%emt 0:00:11]} 54. Kxc3 {[%emt 0:00:03]} Kxa5 {[%emt 0:00:02]} 55. Rf2 {[%emt 0:00:12]} Kb5 {[%emt 0:00:02]} 56. Re2 {[%emt 0:00:03]} Kc5 {[%emt 0:00:02]} 57. Rd2 {[%emt 0:00:02]} Bd5 {[%emt 0:00:14]} 58. Rf2 {[%emt 0:00:13]} Kc6 {[%emt 0:00:29]} 59. Kb2 {[%emt 0:00:20]} Kd7 {[%emt 0:00:12]} 60. Rh2 {[%emt 0:00:20]} Bg2 {[%emt 0:00:14]} 61. Kxb3 {[%emt 0:00:03]} Ke6 {[%emt 0:00:01]} 62. Kc3 {[%emt 0:00:03]} Kxe5 {[%emt 0:00:01]} 63. Kd2 {[%emt 0:00:02]} Kf4 {[%emt 0:00:02]} 64. Ke2 {[%emt 0:00:05]} Kg3 {[%emt 0:00:01]} 65. Rh1 {[%emt 0:00:06]} Bxh1 {[%emt 0:00:03]} 66. Kf1 {[%emt 0:00:01]} Bg2+ {[%emt 0:00:02]} 67. Kg1 {[%emt 0:00:02]} h2# {[%emt 0:00:01]} 0-1

[Event "European Online Club-ch-A 2021"]
[Site "Online"]
[Date "2021.03.27"]
[Round "2.2"]
[White "Grinev, Valeriy"]
[Black "Krieger, Markus"]
[Result "1-0"]
[ECO "E42"]
[WhiteElo "2441"]
[BlackElo "2050"]
[Annotator "NA"]
[PlyCount "71"]
[EventDate "2021.03.27"]
[EventType "team-tourn"]
[EventCountry "NET"]
[SourceTitle "playchess.com"]
[Source "ChessBase"]
[SourceQuality "1"]
[TimeControl "900+5"]

1. d4 {[%emt 0:00:00]} Nf6 {[%emt 0:00:04]} 2. c4 {[%emt 0:00:02]} e6 {[%emt 0:00:01]} 3. Nc3 {[%emt 0:00:01]} Bb4 {[%emt 0:00:03]} 4. e3 {[%emt 0:00:03]} c5 {[%emt 0:00:03]} 5. Nge2 {[%emt 0:00:02]} b6 {[%emt 0:00:02]} 6. a3 {[%emt 0:00:03]} Ba5 {[%emt 0:01:10]} 7. g3 {[%emt 0:00:14]} Bb7 {[%emt 0:00:11]} 8. d5 {[%emt 0:00:02]} exd5 {[%emt 0:00:12]} 9. Bg2 {[%emt 0:00:03]} O-O {[%emt 0:00:16]} 10. O-O {[%emt 0:00:03]} Bxc3 {[%emt 0:00:07]} 11. Nxc3 {[%emt 0:00:03]} Nc6 {[%emt 0:00:40]} 12. Nxd5 {[%emt 0:00:10]} Nxd5 {[%emt 0:00:07]} 13. Bxd5 {[%emt 0:00:04]} Qc7 {[%emt 0:00:55]} 14. Bd2 {[%emt 0:00:25]} Ne7 {[%emt 0:00:09]} 15. Bxb7 {[%emt 0:00:23]} Qxb7 {[%emt 0:00:00]} 16. e4 {[%emt 0:00:05]} Rfe8 {[%emt 0:00:32]} 17. Re1 {[%emt 0:00:21]} f5 {[%emt 0:00:56]} 18. e5 {[%emt 0:00:08]} Rad8 {[%emt 0:00:12]} 19. Bc3 {[%emt 0:00:04]} Qc6 {[%emt 0:00:16]} 20. Qh5 {[%emt 0:00:28]} Qg6 {[%emt 0:00:19]} 21. Qf3 {[%emt 0:01:10]} Nc6 {[%emt 0:00:48]} 22. Rad1 {[%emt 0:00:05]} Re6 {[%emt 0:00:25]} 23. Rd5 {[%emt 0:00:15]} Qf7 {[%emt 0:00:22]} 24. Red1 {[%emt 0:00:29]} g6 {[%emt 0:00:47]} 25. Qe3 {[%emt 0:00:26]} Qe8 {[%emt 0:00:59]} 26. f4 {[%emt 0:00:03]} Ne7 {[%emt 0:00:06]} 27. R5d2 {[%emt 0:00:13]} Nc8 {[%emt 0:00:13]} 28. Qf3 {[%emt 0:00:07]} Qf7 {[%emt 0:01:37]} 29. b3 {[%emt 0:00:29]} h6 {[%emt 0:01:20]} 30. h4 {[%emt 0:00:21]} Qe8 {[%emt 0:00:25]} 31. Qb7 {[%emt 0:00:20]} Re7 {[%emt 0:00:23]} 32. Qd5+ {[%emt 0:00:14]} Qf7 {[%emt 0:00:07]} 33. b4 {[%emt 0:00:15]} d6 {[%emt 0:00:49]} 34. bxc5 {[%emt 0:00:21]} bxc5 {[%emt 0:00:06]} 35. exd6 {[%emt 0:00:10]} Qxd5 {[%emt 0:00:09]} 36. dxe7 {[%emt 0:00:15]} 1-0

[Event "European Online Club-ch-A 2021"]
[Site "Online"]
[Date "2021.03.27"]
[Round "2.3"]
[White "Ferster, Fabian"]
[Black "Mitusov, Semen"]
[Result "0-1"]
[ECO "A29"]
[WhiteElo "2149"]
[BlackElo "2297"]
[Annotator "NA"]
[PlyCount "90"]
[EventDate "2021.03.27"]
[EventType "team-tourn"]
[EventCountry "NET"]
[SourceTitle "playchess.com"]
[Source "ChessBase"]
[SourceQuality "1"]
[TimeControl "900+5"]

1. c4 {[%emt 0:00:00]} e5 {[%emt 0:00:06]} 2. Nf3 {[%emt 0:00:07]} Nc6 {[%emt 0:00:10]} 3. Nc3 {[%emt 0:00:02]} Nf6 {[%emt 0:00:14]} 4. g3 {[%emt 0:00:03]} g6 {[%emt 0:00:30]} 5. d4 {[%emt 0:00:20]} exd4 {[%emt 0:00:21]} 6. Nxd4 {[%emt 0:00:02]} Bg7 {[%emt 0:00:28]} 7. Nc2 {[%emt 0:00:23]} O-O {[%emt 0:00:23]} 8. Bg2 {[%emt 0:00:02]} d6 {[%emt 0:00:07]} 9. O-O {[%emt 0:00:02]} h6 {[%emt 0:00:05]} 10. h3 {[%emt 0:00:18]} Be6 {[%emt 0:00:17]} 11. Nd5 {[%emt 0:00:34]} Kh7 {[%emt 0:00:24]} 12. Rb1 {[%emt 0:00:19]} a5 {[%emt 0:00:31]} 13. Bf4 {[%emt 0:00:33]} Re8 {[%emt 0:00:45]} 14. Kh2 {[%emt 0:00:53]} Bf5 {[%emt 0:00:16]} 15. Nxf6+ {[%emt 0:02:20]} Qxf6 {[%emt 0:00:10]} 16. Re1 {[%emt 0:00:03]} g5 {[%emt 0:00:33]} 17. Bd2 {[%emt 0:00:10]} Qg6 {[%emt 0:00:14]} 18. Ne3 {[%emt 0:00:57]} Bxb1 {[%emt 0:00:22]} 19. Qxb1 {[%emt 0:00:00]} Qxb1 {[%emt 0:00:24]} 20. Rxb1 {[%emt 0:00:00]} Kg6 {[%emt 0:00:47]} 21. Kg1 {[%emt 0:00:41]} f5 {[%emt 0:00:07]} 22. Kf1 {[%emt 0:00:02]} Re7 {[%emt 0:00:24]} 23. Nd5 {[%emt 0:00:07]} Rf7 {[%emt 0:00:15]} 24. g4 {[%emt 0:00:20]} Re8 {[%emt 0:00:31]} 25. Ne3 {[%emt 0:04:37]} fxg4 {[%emt 0:01:19]} 26. hxg4 {[%emt 0:00:05]} Nd4 {[%emt 0:00:06]} 27. Bxb7 {[%emt 0:00:18]} c6 {[%emt 0:00:05]} 28. Bxc6 {[%emt 0:01:12]} Nxc6 {[%emt 0:00:05]} 29. Nf5 {[%emt 0:00:01]} Rxf5 {[%emt 0:00:23]} 30. gxf5+ {[%emt 0:00:04]} Kxf5 {[%emt 0:00:01]} 31. b4 {[%emt 0:00:15]} axb4 {[%emt 0:00:13]} 32. Bxb4 {[%emt 0:00:00]} Rb8 {[%emt 0:00:08]} 33. a3 {[%emt 0:00:02]} Bc3 {[%emt 0:00:55]} 34. Rd1 {[%emt 0:00:15]} Nxb4 {[%emt 0:00:06]} 35. axb4 {[%emt 0:00:04]} Bxb4 {[%emt 0:00:01]} 36. Rd5+ {[%emt 0:00:04]} Ke6 {[%emt 0:00:05]} 37. Kg2 {[%emt 0:00:03]} Bc5 {[%emt 0:00:05]} 38. Rd2 {[%emt 0:00:06]} Rf8 {[%emt 0:00:24]} 39. e3 {[%emt 0:00:12]} Rb8 {[%emt 0:00:09]} 40. Kg3 {[%emt 0:00:06]} Rb1 {[%emt 0:00:04]} 41. Rc2 {[%emt 0:00:12]} Kf5 {[%emt 0:00:10]} 42. Kf3 {[%emt 0:00:06]} h5 {[%emt 0:00:04]} 43. e4+ {[%emt 0:00:05]} Ke6 {[%emt 0:00:04]} 44. Rd2 {[%emt 0:00:05]} h4 {[%emt 0:00:16]} 45. Rd5 {[%emt 0:00:03]} Rg1 {[%emt 0:00:03]} 0-1

[Event "European Online Club-ch-A 2021"]
[Site "Online"]
[Date "2021.03.27"]
[Round "2.4"]
[White "Vovk, Orest"]
[Black "Frick, Renato"]
[Result "1-0"]
[ECO "A00"]
[WhiteElo "2315"]
[BlackElo "1947"]
[Annotator "NA"]
[PlyCount "107"]
[EventDate "2021.03.27"]
[EventType "team-tourn"]
[EventCountry "NET"]
[SourceTitle "playchess.com"]
[Source "ChessBase"]
[SourceQuality "1"]
[TimeControl "900+5"]

1. g4 {[%emt 0:00:00]} d5 {[%emt 0:00:09]} 2. h3 {[%emt 0:00:08]} e5 {[%emt 0:00:06]} 3. Bg2 {[%emt 0:00:02]} c6 {[%emt 0:00:02]} 4. d4 {[%emt 0:00:01]} exd4 {[%emt 0:01:21]} 5. Qxd4 {[%emt 0:00:03]} Qf6 {[%emt 0:00:17]} 6. Nf3 {[%emt 0:00:08]} Nd7 {[%emt 0:00:18]} 7. Bf4 {[%emt 0:00:27]} Bc5 {[%emt 0:00:16]} 8. Qxf6 {[%emt 0:00:14]} Ngxf6 {[%emt 0:00:05]} 9. Nbd2 {[%emt 0:00:05]} Nb6 {[%emt 0:01:17]} 10. e3 {[%emt 0:00:15]} O-O {[%emt 0:01:01]} 11. O-O-O {[%emt 0:00:26]} Be6 {[%emt 0:00:15]} 12. Nd4 {[%emt 0:00:18]} Rfe8 {[%emt 0:00:27]} 13. Nxe6 {[%emt 0:00:27]} Rxe6 {[%emt 0:00:09]} 14. Nb3 {[%emt 0:00:06]} Bf8 {[%emt 0:00:32]} 15. Nd4 {[%emt 0:00:02]} Re7 {[%emt 0:00:06]} 16. Bg5 {[%emt 0:00:05]} Nbd7 {[%emt 0:00:27]} 17. Nf5 {[%emt 0:01:26]} Ree8 {[%emt 0:00:08]} 18. c4 {[%emt 0:00:22]} g6 {[%emt 0:00:35]} 19. Ng3 {[%emt 0:01:05]} dxc4 {[%emt 0:00:20]} 20. Rd4 {[%emt 0:00:20]} h6 {[%emt 0:00:41]} 21. Bxf6 {[%emt 0:00:08]} Nxf6 {[%emt 0:00:06]} 22. Rxc4 {[%emt 0:00:04]} Rad8 {[%emt 0:00:15]} 23. Rd1 {[%emt 0:00:08]} Rxd1+ {[%emt 0:00:11]} 24. Kxd1 {[%emt 0:00:02]} Rd8+ {[%emt 0:00:17]} 25. Kc2 {[%emt 0:00:22]} Nd5 {[%emt 0:00:21]} 26. Bxd5 {[%emt 0:00:11]} Rxd5 {[%emt 0:00:03]} 27. Rd4 {[%emt 0:00:43]} Bg7 {[%emt 0:01:40]} 28. Rxd5 {[%emt 0:00:07]} cxd5 {[%emt 0:00:01]} 29. Ne2 {[%emt 0:00:17]} Be5 {[%emt 0:00:19]} 30. f4 {[%emt 0:00:12]} Bf6 {[%emt 0:00:07]} 31. Nc3 {[%emt 0:00:22]} d4 {[%emt 0:00:06]} 32. Ne4 {[%emt 0:00:32]} Bg7 {[%emt 0:00:13]} 33. exd4 {[%emt 0:00:41]} Bxd4 {[%emt 0:00:05]} 34. f5 {[%emt 0:00:08]} Kf8 {[%emt 0:00:34]} 35. b3 {[%emt 0:00:08]} Ke7 {[%emt 0:00:07]} 36. Kd3 {[%emt 0:00:03]} Bb2 {[%emt 0:00:14]} 37. Kc4 {[%emt 0:00:04]} Ba3 {[%emt 0:00:18]} 38. Kd5 {[%emt 0:00:10]} Bb4 {[%emt 0:00:38]} 39. a4 {[%emt 0:00:11]} Ba3 {[%emt 0:00:31]} 40. Kc4 {[%emt 0:01:01]} Kd7 {[%emt 0:01:06]} 41. b4 {[%emt 0:00:22]} Ke7 {[%emt 0:00:12]} 42. a5 {[%emt 0:01:41]} b6 {[%emt 0:00:16]} 43. a6 {[%emt 0:00:13]} Bb2 {[%emt 0:00:15]} 44. Kd5 {[%emt 0:00:30]} Kd7 {[%emt 0:00:18]} 45. Nd6 {[%emt 0:00:59]} gxf5 {[%emt 0:00:28]} 46. gxf5 {[%emt 0:00:05]} Bc3 {[%emt 0:00:26]} 47. Nxf7 {[%emt 0:00:14]} Bxb4 {[%emt 0:00:05]} 48. Ne5+ {[%emt 0:00:16]} Kc7 {[%emt 0:00:39]} 49. Nc6 {[%emt 0:00:03]} Bf8 {[%emt 0:00:23]} 50. Nxa7 {[%emt 0:00:06]} Kb8 {[%emt 0:00:03]} 51. Nb5 {[%emt 0:00:03]} Ka8 {[%emt 0:00:03]} 52. Ke6 {[%emt 0:00:06]} Bc5 {[%emt 0:00:14]} 53. f6 {[%emt 0:00:03]} Kb8 {[%emt 0:00:10]} 54. Kd7 {[%emt 0:00:03]} 1-0

[Event "European Online Club-ch-A 2021"]
[Site "Online"]
[Date "2021.03.27"]
[Round "2.5"]
[White "Valdes Escobar, Alvaro"]
[Black "Jakubowski, Krzysztof"]
[Result "1-0"]
[ECO "A28"]
[WhiteElo "2355"]
[BlackElo "2497"]
[Annotator "ChessBase"]
[PlyCount "87"]
[EventDate "2021.03.27"]
[EventType "team-tourn"]
[EventCountry "NET"]
[SourceTitle "playchess.com"]
[Source "ChessBase"]
[SourceQuality "1"]
[TimeControl "900+5"]

1. c4 {[%emt 0:00:00]} e5 {[%emt 0:00:06]} 2. Nc3 {[%emt 0:00:03]} Nf6 {[%emt 0:00:04]} 3. Nf3 {[%emt 0:00:09]} Nc6 {[%emt 0:00:06]} 4. e3 {[%emt 0:00:18]} Bb4 {[%emt 0:00:09]} 5. Qc2 {[%emt 0:00:08]} Bxc3 {[%emt 0:00:04]} 6. Qxc3 {[%emt 0:00:02]} Qe7 {[%emt 0:00:03]} 7. d4 {[%emt 0:00:34]} Ne4 {[%emt 0:00:45]} 8. Qd3 {[%emt 0:00:10]} exd4 {[%emt 0:00:16]} 9. Nxd4 {[%emt 0:00:06]} O-O {[%emt 0:00:06]} 10. Be2 {[%emt 0:00:20]} Qb4+ {[%emt 0:00:20]} 11. Kf1 {[%emt 0:00:04]} Qe7 {[%emt 0:00:06]} 12. f3 {[%emt 0:00:32]} f5 {[%emt 0:00:05]} 13. g3 {[%emt 0:01:16]} d6 {[%emt 0:03:14]} 14. Kg2 {[%emt 0:01:12]} Nc5 {[%emt 0:00:06]} 15. Nxc6 {[%emt 0:02:33]} bxc6 {[%emt 0:00:05]} 16. Qc2 {[%emt 0:00:50]} a5 {[%emt 0:00:39]} 17. Re1 {[%emt 0:00:08]} h5 {[%emt 0:01:04]} 18. Bd2 {[%emt 0:02:03]} g5 {[%emt 0:01:33]} 19. Bd3 {[%emt 0:02:47]} g4 {[%emt 0:00:52]} 20. fxg4 {[%emt 0:00:04]} hxg4 {[%emt 0:02:01]} 21. e4 {[%emt 0:00:33]} fxe4 {[%emt 0:02:08]} 22. Bxe4 {[%emt 0:00:03]} Nxe4 {[%emt 0:00:03]} 23. Qxe4 {[%emt 0:01:09]} Qxe4+ {[%emt 0:00:12]} 24. Rxe4 {[%emt 0:00:03]} c5 {[%emt 0:00:02]} 25. Kg1 {[%emt 0:00:13]} a4 {[%emt 0:00:12]} 26. Rae1 {[%emt 0:01:00]} Bf5 {[%emt 0:00:29]} 27. Re7 {[%emt 0:00:11]} Rf7 {[%emt 0:00:03]} 28. Bc3 {[%emt 0:00:20]} Bd3 {[%emt 0:00:33]} 29. Re8+ {[%emt 0:00:22]} Rxe8 {[%emt 0:00:03]} 30. Rxe8+ {[%emt 0:00:02]} Kh7 {[%emt 0:00:03]} 31. b3 {[%emt 0:00:09]} Rf1+ {[%emt 0:00:39]} 32. Kg2 {[%emt 0:00:02]} Rc1 {[%emt 0:00:02]} 33. Ba5 {[%emt 0:00:06]} Rc2+ {[%emt 0:00:11]} 34. Kg1 {[%emt 0:00:02]} a3 {[%emt 0:00:04]} 35. Re3 {[%emt 0:00:13]} Bf5 {[%emt 0:00:27]} 36. b4 {[%emt 0:00:01]} Rxa2 {[%emt 0:00:05]} 37. bxc5 {[%emt 0:00:04]} dxc5 {[%emt 0:00:13]} 38. Re1 {[%emt 0:00:04]} Rc2 {[%emt 0:00:12]} 39. Bxc7 {[%emt 0:00:06]} a2 {[%emt 0:00:05]} 40. Be5 {[%emt 0:00:03]} Rxc4 {[%emt 0:00:03]} 41. Kf2 {[%emt 0:00:08]} Rb4 {[%emt 0:00:34]} 42. Ba1 {[%emt 0:00:12]} Rb1 {[%emt 0:00:04]} 43. Bc3 {[%emt 0:00:02]} Kg6 {[%emt 0:00:06]} 44. Ke2 {[%emt 0:00:02]} 1-0

[Event "European Online Club-ch-A 2021"]
[Site "Online"]
[Date "2021.03.27"]
[Round "2.6"]
[White "Schmidek, Emil"]
[Black "Fitzsimons, David"]
[Result "1-0"]
[ECO "B06"]
[WhiteElo "2402"]
[BlackElo "2324"]
[Annotator "NA"]
[PlyCount "105"]
[EventDate "2021.03.27"]
[EventType "team-tourn"]
[EventCountry "NET"]
[SourceTitle "playchess.com"]
[Source "ChessBase"]
[SourceQuality "1"]
[TimeControl "900+5"]

1. d4 {[%emt 0:00:00]} g6 {[%emt 0:00:05]} 2. e4 {[%emt 0:00:05]} Bg7 {[%emt 0:00:05]} 3. Nc3 {[%emt 0:00:01]} d5 {[%emt 0:00:02]} 4. e5 {[%emt 0:00:03]} f6 {[%emt 0:00:03]} 5. f4 {[%emt 0:00:07]} Nh6 {[%emt 0:00:04]} 6. Nf3 {[%emt 0:00:14]} Bg4 {[%emt 0:00:04]} 7. Be3 {[%emt 0:00:08]} O-O {[%emt 0:00:03]} 8. Be2 {[%emt 0:01:32]} e6 {[%emt 0:00:04]} 9. exf6 {[%emt 0:00:26]} Qxf6 {[%emt 0:00:04]} 10. Ne5 {[%emt 0:00:48]} Bxe2 {[%emt 0:00:04]} 11. Qxe2 {[%emt 0:00:05]} Nf5 {[%emt 0:00:03]} 12. Bf2 {[%emt 0:00:04]} Qe7 {[%emt 0:00:33]} 13. O-O {[%emt 0:00:17]} Nd7 {[%emt 0:00:03]} 14. Rae1 {[%emt 0:02:03]} Nxe5 {[%emt 0:00:04]} 15. fxe5 {[%emt 0:00:36]} b6 {[%emt 0:00:38]} 16. Nd1 {[%emt 0:00:32]} c5 {[%emt 0:00:03]} 17. c3 {[%emt 0:00:02]} cxd4 {[%emt 0:00:03]} 18. Bxd4 {[%emt 0:00:17]} Rac8 {[%emt 0:00:12]} 19. Ne3 {[%emt 0:00:17]} Nxd4 {[%emt 0:00:46]} 20. cxd4 {[%emt 0:00:00]} Qb4 {[%emt 0:00:02]} 21. Rxf8+ {[%emt 0:00:24]} Rxf8 {[%emt 0:00:04]} 22. Rd1 {[%emt 0:01:08]} h5 {[%emt 0:00:45]} 23. Qc2 {[%emt 0:00:46]} Bh6 {[%emt 0:00:11]} 24. Qxg6+ {[%emt 0:00:05]} Bg7 {[%emt 0:00:08]} 25. Qxe6+ {[%emt 0:00:10]} Kh7 {[%emt 0:00:05]} 26. Qxd5 {[%emt 0:00:54]} Qxb2 {[%emt 0:00:05]} 27. Qe4+ {[%emt 0:00:50]} Kh8 {[%emt 0:00:03]} 28. Qc2 {[%emt 0:00:13]} Qa3 {[%emt 0:00:21]} 29. Nf5 {[%emt 0:01:14]} b5 {[%emt 0:01:44]} 30. h3 {[%emt 0:00:59]} a5 {[%emt 0:00:30]} 31. Nxg7 {[%emt 0:00:25]} Kxg7 {[%emt 0:00:08]} 32. Qb3 {[%emt 0:00:22]} Qxb3 {[%emt 0:00:36]} 33. axb3 {[%emt 0:00:00]} a4 {[%emt 0:00:01]} 34. bxa4 {[%emt 0:00:07]} bxa4 {[%emt 0:00:02]} 35. Ra1 {[%emt 0:00:02]} Ra8 {[%emt 0:00:03]} 36. Ra3 {[%emt 0:00:27]} Kg6 {[%emt 0:00:04]} 37. Kf2 {[%emt 0:00:06]} Kf5 {[%emt 0:00:01]} 38. Ke3 {[%emt 0:00:10]} h4 {[%emt 0:00:02]} 39. Kd3 {[%emt 0:01:21]} Kf4 {[%emt 0:00:05]} 40. e6 {[%emt 0:00:09]} Kf5 {[%emt 0:00:09]} 41. e7 {[%emt 0:00:03]} Re8 {[%emt 0:00:08]} 42. Rxa4 {[%emt 0:00:08]} Rxe7 {[%emt 0:00:02]} 43. d5 {[%emt 0:00:07]} Rg7 {[%emt 0:00:07]} 44. Rg4 {[%emt 0:00:30]} Rxg4 {[%emt 0:00:24]} 45. hxg4+ {[%emt 0:00:00]} Kxg4 {[%emt 0:00:02]} 46. d6 {[%emt 0:00:02]} Kg3 {[%emt 0:00:01]} 47. d7 {[%emt 0:00:02]} Kxg2 {[%emt 0:00:02]} 48. d8=Q {[%emt 0:00:02]} h3 {[%emt 0:00:01]} 49. Qg5+ {[%emt 0:00:02]} Kh1 {[%emt 0:00:02]} 50. Qc1+ {[%emt 0:00:05]} Kg2 {[%emt 0:00:03]} 51. Qd2+ {[%emt 0:00:03]} Kh1 {[%emt 0:00:02]} 52. Qd1+ {[%emt 0:00:04]} Kg2 {[%emt 0:00:02]} 53. Qg4+ {[%emt 0:00:02]} 1-0

[Event "European Online Club-ch-A 2021"]
[Site "Online"]
[Date "2021.03.27"]
[Round "2.7"]
[White "Pein, Malcolm"]
[Black "Agopov, Mikael"]
[Result "1-0"]
[ECO "D38"]
[WhiteElo "2309"]
[BlackElo "2427"]
[Annotator "NA"]
[PlyCount "121"]
[EventDate "2021.03.27"]
[EventType "team-tourn"]
[EventCountry "NET"]
[SourceTitle "playchess.com"]
[Source "ChessBase"]
[SourceQuality "1"]
[TimeControl "900+5"]

1. d4 {[%emt 0:00:00]} Nf6 {[%emt 0:00:03]} 2. c4 {[%emt 0:00:04]} e6 {[%emt 0:00:02]} 3. Nf3 {[%emt 0:00:05]} d5 {[%emt 0:00:17]} 4. Nc3 {[%emt 0:00:05]} Bb4 {[%emt 0:00:03]} 5. Bg5 {[%emt 0:01:14]} h6 {[%emt 0:00:02]} 6. Bxf6 {[%emt 0:00:09]} Qxf6 {[%emt 0:00:03]} 7. e3 {[%emt 0:00:01]} O-O {[%emt 0:00:04]} 8. Qb3 {[%emt 0:00:05]} c5 {[%emt 0:01:00]} 9. cxd5 {[%emt 0:00:30]} exd5 {[%emt 0:00:03]} 10. Qxd5 {[%emt 0:00:33]} Nc6 {[%emt 0:00:10]} 11. Bd3 {[%emt 0:01:05]} cxd4 {[%emt 0:01:05]} 12. Nxd4 {[%emt 0:00:44]} Rd8 {[%emt 0:00:31]} 13. Qe4 {[%emt 0:00:19]} Nxd4 {[%emt 0:00:08]} 14. Qh7+ {[%emt 0:00:46]} Kf8 {[%emt 0:00:04]} 15. exd4 {[%emt 0:00:11]} Re8+ {[%emt 0:00:57]} 16. Kf1 {[%emt 0:00:34]} Qxd4 {[%emt 0:01:46]} 17. Bb5 {[%emt 0:02:09]} Be6 {[%emt 0:04:03]} 18. Ne2 {[%emt 0:03:36]} Bc4 {[%emt 0:01:40]} 19. Bxc4 {[%emt 0:00:13]} Qxc4 {[%emt 0:00:05]} 20. Qh8+ {[%emt 0:00:07]} Ke7 {[%emt 0:00:02]} 21. Qxg7 {[%emt 0:00:01]} Kd7 {[%emt 0:01:07]} 22. Qd4+ {[%emt 0:01:09]} Qxd4 {[%emt 0:00:04]} 23. Nxd4 {[%emt 0:00:03]} Rad8 {[%emt 0:01:30]} 24. Rc1 {[%emt 0:02:06]} Re4 {[%emt 0:01:13]} 25. Nf3 {[%emt 0:00:47]} Ke6 {[%emt 0:00:21]} 26. g3 {[%emt 0:00:09]} Ba5 {[%emt 0:00:32]} 27. Rc2 {[%emt 0:00:02]} f5 {[%emt 0:00:11]} 28. Kg2 {[%emt 0:00:03]} Rd3 {[%emt 0:00:04]} 29. Rhc1 {[%emt 0:00:22]} Bb6 {[%emt 0:00:06]} 30. Nd2 {[%emt 0:00:08]} Re2 {[%emt 0:00:05]} 31. Nc4 {[%emt 0:00:03]} Rxc2 {[%emt 0:00:03]} 32. Rxc2 {[%emt 0:00:02]} Bd4 {[%emt 0:00:02]} 33. Nd2 {[%emt 0:00:05]} b5 {[%emt 0:00:05]} 34. Nf3 {[%emt 0:00:02]} Bb6 {[%emt 0:00:04]} 35. Rd2 {[%emt 0:00:05]} Rxd2 {[%emt 0:00:08]} 36. Nxd2 {[%emt 0:00:02]} Kd5 {[%emt 0:00:02]} 37. Kf3 {[%emt 0:00:04]} a5 {[%emt 0:00:04]} 38. Ke2 {[%emt 0:00:17]} a4 {[%emt 0:00:02]} 39. f3 {[%emt 0:00:03]} Bd4 {[%emt 0:00:02]} 40. b3 {[%emt 0:00:03]} Kc5 {[%emt 0:00:03]} 41. Kd3 {[%emt 0:00:03]} Be5 {[%emt 0:00:07]} 42. f4 {[%emt 0:00:08]} Bd4 {[%emt 0:00:06]} 43. bxa4 {[%emt 0:00:03]} bxa4 {[%emt 0:00:03]} 44. Nf3 {[%emt 0:00:01]} Ba1 {[%emt 0:00:19]} 45. Nh4 {[%emt 0:00:04]} Kb4 {[%emt 0:00:02]} 46. Kc2 {[%emt 0:00:02]} Bd4 {[%emt 0:00:06]} 47. Nxf5 {[%emt 0:00:03]} Bg1 {[%emt 0:00:04]} 48. Nxh6 {[%emt 0:00:07]} Bxh2 {[%emt 0:00:02]} 49. Nf5 {[%emt 0:00:02]} Ka3 {[%emt 0:00:02]} 50. Kb1 {[%emt 0:00:04]} Kb4 {[%emt 0:00:01]} 51. Kb2 {[%emt 0:00:18]} a3+ {[%emt 0:00:03]} 52. Kc2 {[%emt 0:00:02]} Kc4 {[%emt 0:00:02]} 53. Ne3+ {[%emt 0:00:05]} Kd4 {[%emt 0:00:02]} 54. Nf1 {[%emt 0:00:02]} Bg1 {[%emt 0:00:02]} 55. Kb3 {[%emt 0:00:04]} Ke4 {[%emt 0:00:08]} 56. Kxa3 {[%emt 0:00:04]} Kf3 {[%emt 0:00:02]} 57. f5 {[%emt 0:00:11]} Bd4 {[%emt 0:00:03]} 58. Kb4 {[%emt 0:00:06]} Kf2 {[%emt 0:00:02]} 59. Kc4 {[%emt 0:00:06]} Bg7 {[%emt 0:00:15]} 60. g4 {[%emt 0:00:06]} Kxf1 {[%emt 0:00:03]} 61. g5 {[%emt 0:00:02]} 1-0